{"text_format":"2","workbook":"xlsx","n_sheets":1,"sheets":["P309 helyiség és előtere"],"not_rendered":{"charts":0,"images":0,"macros":0,"external_links":0,"defined_names":0,"comments":0,"pivot_tables":0},"unopened":[],"bounds":{"document_bytes":16777216,"sheet_cells":100000,"run_cost":"one","rows_first":2000,"rows_last":500,"rows_between":2000,"halvings":0,"cell_chars":16384,"cell_head_chars":4096},"cells_cut":0,"cells_raw":0,"read":"whole","date_system":"1900"}

{"sheet":"P309 helyiség és előtere","index":0,"n_rows":32,"n_cols":8,"rows_kept":32,"cut":false,"hidden":false,"merged":[[1,0,1,1],[0,5,0,7],[27,2,27,3],[30,2,30,3],[31,2,31,3],[27,4,27,5],[30,4,30,5],[31,4,31,5],[28,2,28,3],[29,2,29,3],[28,4,28,5],[29,4,29,5]]}
["SZTE BTK HÖK","Szeged, Egyetem u. 2.",null,null,null,"CAD_2014_071_02_06"]
["Tervezői költségvetés"]
["Ssz.","Megnevezés","Menny.","Egység","Anyag egységár","Díj egységre","Anyag összesen","Díj összesen"]
[]
["1.","Meglévő elektromos hálózat bontása, meglévő lámpatestek leszerelése, meglévő dugaljak leszerelése, elosztó leszerelése.",1,"klt",null,null,{"$f":"ROUND(C5*E5, 0)","v":0},{"$f":"ROUND(C5*F5, 0)","v":0}]
[]
["2.","MÜ.I.  védőcső elhelyezése falon kívül tartószerkezeten átm: 20 mm",25,"m",null,null,{"$f":"ROUND(C7*E7, 0)","v":0},{"$f":"ROUND(C7*F7, 0)","v":0}]
[]
["3.","Szigetelt vezeték szerelése védőcsőbe vagy vezetékcsatornába,leágazó kötésekkel vörösréz vezetővel, NYM-J 3x1,5 mm2 ",35,"m",null,null,{"$f":"ROUND(C9*E9, 0)","v":0},{"$f":"ROUND(C9*F9, 0)","v":0}]
[]
["4.","CAT 6e UTP árnyékolatlan fali kábel védőcsőben vagy vezetékcsatornában",12,"m",null,null,{"$f":"ROUND(C11*E11, 0)","v":0},{"$f":"ROUND(C11*F11, 0)","v":0}]
[]
["5.","Pince jelű elosztó műhelyben történő előszerelése, a helyszínen történő telepítése, bekötése",1,"db",null,null,{"$f":"ROUND(C13*E13, 0)","v":0},{"$f":"ROUND(C13*F13, 0)","v":0}]
[]
["6.","Lámpatest elhelyezése, bekötése; COMPASS  1x36 W lámpatest PP kivitelben",4,"db",null,null,{"$f":"ROUND(C15*E15, 0)","v":0},{"$f":"ROUND(C15*F15, 0)","v":0}]
[]
["7.","Szerelvények; SCHNEIDER Sedna csillárkapcsoló komplett, beszereléssel, bekötéssel",1,"db",null,null,{"$f":"ROUND(C17*E17, 0)","v":0},{"$f":"ROUND(C17*F17, 0)","v":0}]
[]
["8.","Meglévő informatikai betápláló kábel bekötése, informatikai aljzatok szerelése",5,"db",null,null,{"$f":"ROUND(C19*E19, 0)","v":0},{"$f":"ROUND(C19*F19, 0)","v":0}]
[]
["9.","Szerelvények; SCHNEIDER Sedna dugalj jelzett darabszámban, közös keretben komplett, beszereléssel, bekötéssel (informatikai csatlakozó csak így szerelhető fel a közös dobozba)",5,"db",null,null,{"$f":"ROUND(C21*E21, 0)","v":0},{"$f":"ROUND(C21*F21, 0)","v":0}]
[]
["10.","Érintésvédelmi és szabványossági felülvizsgálat",1,"egység",null,null,{"$f":"ROUND(C23*E23, 0)","v":0},{"$f":"ROUND(C23*F23, 0)","v":0}]
[]
["11.","Világítás javítás (spot izzók cseréje, Ufo lámpa búra pótlása,stb.)",1,"egység",null,null,{"$f":"ROUND(C25*E25, 0)","v":0},{"$f":"ROUND(C25*F25, 0)","v":0}]
[null,"Munkanem összesen:",{"$nulls":4},{"$f":"ROUND(SUM(G4:G25),0)","v":0},{"$f":"ROUND(SUM(H4:H25),0)","v":0}]
[]
[null,null,"Anyag+díj összesen:",null,0]
[null,null,"Tartalékkeret 5%:",null,{"$f":"ROUND(E28*5%,0)","v":0}]
[null,null,"Áfa vetítési alap:",null,{"$f":"ROUND(E28+E29,0)","v":0}]
[null,null,"Áfa (+27%):",null,{"$f":"E30*0.27","v":0}]
[null,null,"Összesen:",null,{"$f":"E28+E31","v":0}]